fUSD/lending_fUSD_20241215
["ID","MTS","AMOUNT","RATE_DAILY","PERIOD"]
[345405839,1734245432249,-989.25,0.00013137,2]
[345405840,1734245432260,-436.27,0.00013288,2]
[345405841,1734245432271,-436.27,0.00013288,2]
[345405843,1734245432281,-152.46,0.00013288,2]
[345405845,1734245432292,-366.235,0.000133,2]
[345405847,1734245432302,-1010.96,0.0001332,2]
[345405848,1734245432312,-1014.43,0.00013404,2]
[345405849,1734245432325,-991.96,0.00013476,2]
[345405850,1734245432334,-1006.39,0.00013476,2]
[345405851,1734245432344,-985.22,0.0001354,2]
[345405852,1734245432354,-300.0,0.000136,4]
[345405853,1734245432364,-1056.0,0.00013634,2]
[345405854,1734245432374,-201.3,0.00013699,2]
[345405855,1734245432383,-200.0,0.00013699,2]
[345405856,1734245432393,-600.0,0.000137,5]
[345405857,1734245432402,-2597.78898313,0.0001379,2]
[345405858,1734245432412,-44114.33,0.000138,2]
[345405859,1734245432423,-618.19,0.000138,3]
[345405860,1734245432434,-1000.0,0.000138,5]
[345405861,1734245432443,-500.0,0.00013876,2]
[345405862,1734245432454,-201.88,0.00013876,2]
[345405863,1734245432464,-1006.18,0.00013877,2]
[345405864,1734245432475,-500.0,0.00013877,2]
[345405865,1734245432486,-500.0,0.00013877,2]
[345405866,1734245432495,-29277.04027179,0.00013889,2]
[345405867,1734245432506,-6809.7341,0.00013899,2]
[345405868,1734245432517,-1806.82439886,0.00013899,2]
[345405869,1734245432527,-1300.0,0.000139,5]
[345405870,1734245432538,-277.73713938,0.000139,2]
[345405871,1734245432548,-1220.071,0.00013948,2]
[345405872,1734245432560,-500.0,0.00013973,2]
[345405873,1734245432571,-435.71,0.00013973,2]
[345405874,1734245432587,-435.71,0.00013973,2]
[345405875,1734245432597,-435.71,0.00013973,2]
[345405876,1734245432607,-435.71,0.00013973,2]
[345405877,1734245432617,-435.71,0.00013973,2]
[345405878,1734245432631,-350.8,0.00013973,2]
[345405879,1734245432641,-1000.0,0.00013979,2]
[345405880,1734245432651,-336.16,0.00013989,2]
[345405881,1734245432661,-268.97,0.00013992,2]
[345405882,1734245432671,-1007.47,0.00013994,2]
[345405883,1734245432681,-1541.5086319,0.00013995,2]
[345405884,1734245432692,-4745.6128879,0.00013995,2]
[345405885,1734245432702,-500.0,0.00013997,2]
[345405886,1734245432958,-500.0,0.00013997,2]
[345405887,1734245432968,-500.0,0.00013997,2]
[345405888,1734245432981,-500.0,0.00013997,2]
[345405889,1734245432992,-436.03952208,0.00013997,2]
[345405890,1734245433003,-302.39953929,0.00013997,2]
[345405891,1734245433012,-500.0,0.00013997,2]
[345405892,1734245433024,-500.0,0.00013997,2]
[345405893,1734245433033,-1335.17,0.00013997,2]
[345405894,1734245433043,-503.65,0.00013997,2]
[345405895,1734245433053,-545.77,0.00013997,2]
[345405896,1734245433067,-500.49,0.00013997,2]
[345405897,1734245433079,-491.51912947,0.00013997,2]
[345405898,1734245433088,-615.92,0.00013997,2]
[345405899,1734245433098,-500.0,0.00013997,2]
[345405900,1734245433108,-512.9,0.00013997,2]
[345405901,1734245433118,-500.0,0.00013997,2]
[345405902,1734245433128,-2616.5,0.00013997,2]
[345405903,1734245433137,-843.76525675,0.00013997,2]
[345405904,1734245433334,-153.41474325,0.00013997,2]
[345405905,1734245433344,-184.27954557,0.00013997,2]
[345405906,1734245433356,-711.47500005,0.00013997,2]
[345405907,1734245433368,-46.30545438,0.00013997,2]
[345405908,1734245433377,-500.0,0.00013997,2]
[345405909,1734245433387,-328.15878724,0.00013997,2]
[345405910,1734245433399,-171.84121276,0.00013997,2]
[345405911,1734245433408,-582.67,0.00013997,2]
[345405912,1734245433417,-443.88878724,0.00013997,2]
[345405913,1734245433429,-202.83121276,0.00013997,2]
[345405914,1734245433438,-500.0,0.00013997,2]
[345405915,1734245433447,-226.81312724,0.00013997,2]
[345405919,1734245438103,-653.67901261,0.00012677,2]
[345406061,1734245439822,-258.85534678,0.00012677,2]
[345406062,1734245439836,-89.99564061,0.00012677,2]
[345406063,1734245439846,-306.50349868,0.00013997,2]
[345406064,1734245439981,-234.74337408,0.00013997,2]
[345406065,1734245439991,-500.0,0.00013997,2]
[345406066,1734245440001,-500.0,0.00013997,2]
[345406067,1734245440011,-500.0,0.00013997,2]
[345406068,1734245440022,-500.0,0.00013997,2]
[345406069,1734245440032,-500.0,0.00013997,2]
[345406070,1734245440041,-568.85,0.00013997,2]
[345406071,1734245440052,-500.0,0.00013997,2]
[345406072,1734245440061,-314.83536006,0.00013997,2]
[345406073,1734245440071,-86.88661611,0.00013997,2]
[345406074,1734245440087,-413.11338389,0.00013997,2]
[345406075,1734245440097,-500.0,0.00013997,2]
[345406076,1734245440106,-504.88,0.00013997,2]
[345406077,1734245440116,-1135.47,0.00013997,2]
[345406078,1734245440125,-500.0,0.00013997,2]
[345406079,1734245440135,-19.67476465,0.00013997,2]
[345406080,1734245440147,-480.32523535,0.00013997,2]
[345406081,1734245440156,-19.43296605,0.00013997,2]
[345406082,1734245440185,-516.47703395,0.00013997,2]
[345406083,1734245440194,-500.0,0.00013997,2]
[345406084,1734245440203,-540.47,0.00013997,2]
[345406085,1734245440212,-500.0,0.00013997,2]
[345406086,1734245440221,-337.96401234,0.00013997,2]
[345406097,1734245442817,-500.0,0.00013973,2]
[345406098,1734245442828,-356.71598766,0.00013997,2]
[345406099,1734245442837,-500.0,0.00013997,2]
[345406100,1734245442846,-500.0,0.00013997,2]
[345406101,1734245442856,-500.0,0.00013997,2]
[345406102,1734245442866,-504.88,0.00013997,2]
[345406103,1734245442875,-500.0,0.00013997,2]
[345406104,1734245442884,-500.0,0.00013997,2]
[345406105,1734245442893,-500.0,0.00013997,2]
[345406106,1734245442902,-500.0,0.00013997,2]
[345406107,1734245442912,-153.3325555,0.00013997,2]
[345406108,1734245442922,-500.0,0.00013997,2]
[345406109,1734245442931,-640.35,0.00013997,2]
[345406110,1734245442940,-556.71,0.00013997,2]
[345406111,1734245442949,-500.0,0.00013997,2]
[345406112,1734245442959,-500.0,0.00013998,2]
[345406113,1734245442969,-500.0,0.00013998,2]
[345406114,1734245442980,-500.0,0.00013998,2]
[345406115,1734245442991,-500.0,0.00013998,2]
[345406116,1734245443001,-500.0,0.00013998,2]
[345406117,1734245443010,-440.45,0.00013998,2]
[345406118,1734245443020,-43.67545684,0.00013998,2]
[345406119,1734245443032,-456.32454316,0.00013998,2]
[345406120,1734245443043,-500.0,0.00013998,2]
[345406121,1734245443055,-500.0,0.00013998,2]
[345406122,1734245443064,-503.16350255,0.00013998,2]
[345406123,1734245443073,-319.64667652,0.00013998,2]
[345406124,1734245443086,-1335.17,0.00013998,2]
[345406125,1734245443096,-545.77,0.00013998,2]
[345406126,1734245443105,-500.49,0.00013998,2]
[345406127,1734245443114,-500.0,0.00013998,2]
[345406128,1734245443124,-360.07622898,0.00013998,2]
[345406129,1734245443137,-139.92377102,0.00013998,2]
[345406130,1734245443146,-615.92,0.00013998,2]
[345406131,1734245443156,-500.0,0.00013998,2]
[345406132,1734245443165,-500.0,0.00013998,2]
[345406133,1734245443174,-303.5,0.00013998,2]
[345406134,1734245443183,-500.0,0.00013998,2]
[345406135,1734245443192,-2616.5,0.00013998,2]
[345406136,1734245443202,-997.18,0.00013998,2]
[345406137,1734245443212,-942.06,0.00013998,2]
[345406138,1734245443221,-500.0,0.00013998,2]
[345406139,1734245443230,-582.67,0.00013998,2]
[345406140,1734245443240,-646.72,0.00013998,2]
[345406141,1734245443249,-500.0,0.00013998,2]
[345406142,1734245443259,-768.06,0.00013998,2]
[345406143,1734245443268,-313.33,0.00013998,2]
[345406144,1734245443277,-500.0,0.00013998,2]
[345406145,1734245443286,-500.0,0.00013998,2]
[345406146,1734245443296,-241.38,0.00013998,2]
[345406147,1734245443306,-568.85,0.00013998,2]
[345406148,1734245443315,-504.88,0.00013998,2]
[345406149,1734245443324,-1135.47,0.00013998,2]
[345406150,1734245443337,-500.0,0.00013998,2]
[345406151,1734245443347,-500.0,0.00013998,2]
[345406152,1734245443357,-210.03,0.00013998,2]
[345406153,1734245443367,-500.0,0.00013998,2]
[345406154,1734245443377,-535.91,0.00013998,2]
[345406155,1734245443386,-500.0,0.00013998,2]
[345406156,1734245443395,-500.0,0.00013998,2]
[345406157,1734245443405,-540.47,0.00013998,2]
[345406158,1734245443414,-500.0,0.00013998,2]
[345406159,1734245443423,-500.0,0.00013998,2]
[345406160,1734245443433,-500.0,0.00013998,2]
[345406161,1734245443442,-500.0,0.00013998,2]
[345406162,1734245443451,-500.0,0.00013998,2]
[345406163,1734245443461,-500.0,0.00013998,2]
[345406164,1734245443471,-500.0,0.00013998,2]
[345406165,1734245443480,-694.68,0.00013998,2]
[345406166,1734245443489,-500.0,0.00013998,2]
[345406167,1734245443498,-500.0,0.00013998,2]
[345406168,1734245443507,-587.4,0.00013998,2]
[345406169,1734245443517,-587.4,0.00013998,2]
[345406170,1734245443526,-500.0,0.00013998,2]
[345406171,1734245443538,-504.88,0.00013998,2]
[345406172,1734245443549,-500.0,0.00013998,2]
[345406173,1734245443559,-511.97,0.00013998,2]
[345406174,1734245443568,-511.97,0.00013998,2]
[345406175,1734245443580,-500.0,0.00013998,2]
[345406176,1734245443590,-500.0,0.00013998,2]
[345406177,1734245443599,-1703.53,0.00013998,2]
[345406178,1734245443609,-1703.53,0.00013998,2]
[345406179,1734245443618,-500.0,0.00013998,2]
[345406180,1734245443627,-500.0,0.00013998,2]
[345406181,1734245443636,-277.9479236,0.00013998,2]
[345406182,1734245443645,-1507.76,0.00013998,2]
[345406183,1734245443654,-1507.76,0.00013998,2]
[345406184,1734245443664,-640.35,0.00013998,2]
[345406185,1734245443673,-966.32,0.00013998,2]
[345406186,1734245443683,-966.32,0.00013998,2]
[345406187,1734245443692,-556.71,0.00013998,2]
[345406188,1734245443701,-500.0,0.00013998,2]
[345406189,1734245443710,-500.0,0.00013998,2]
[345406190,1734245443720,-500.0,0.00013998,2]
[345406191,1734245443729,-500.0,0.00013999,2]
[345406192,1734245443738,-500.0,0.00013999,2]
[345406193,1734245443748,-500.0,0.00013999,2]
[345406194,1734245443758,-500.0,0.00013999,2]
[345406195,1734245443767,-418.23353737,0.00013999,2]
[345406196,1734245443776,-500.0,0.00013999,2]
[345406197,1734245443785,-500.0,0.00013999,2]
[345406198,1734245443795,-500.0,0.00013999,2]
[345406199,1734245443803,-564.45,0.00013999,2]
[345406200,1734245443813,-168.1,0.00013999,2]
[345406201,1734245443822,-500.0,0.00013999,2]
[345406202,1734245443833,-500.0,0.00013999,2]
[345406203,1734245443842,-472.65252503,0.00013999,2]
[345406204,1734245443851,-1335.17,0.00013999,2]
[345406205,1734245443861,-1335.17,0.00013999,2]
[345406206,1734245443870,-1335.17,0.00013999,2]
[345406207,1734245443879,-1335.17,0.00013999,2]
[345406208,1734245443888,-1335.17,0.00013999,2]
[345406209,1734245443898,-1335.17,0.00013999,2]
[345406210,1734245443907,-1335.17,0.00013999,2]
[345406211,1734245443917,-1335.17,0.00013999,2]
[345406212,1734245443926,-1335.17,0.00013999,2]
[345406213,1734245443936,-1335.17,0.00013999,2]
[345406214,1734245443945,-545.77,0.00013999,2]
[345406215,1734245443955,-545.77,0.00013999,2]
[345406216,1734245443964,-500.49,0.00013999,2]
[345406217,1734245443974,-545.77,0.00013999,2]
[345406218,1734245443987,-545.77,0.00013999,2]
[345406219,1734245443997,-183.51224299,0.00013999,2]
[345406222,1734245445846,-316.97775701,0.00013999,2]
[345406223,1734245445856,-545.77,0.00013999,2]
[345406224,1734245445865,-500.49,0.00013999,2]
[345406225,1734245445875,-545.77,0.00013999,2]
[345406226,1734245445884,-500.49,0.00013999,2]
[345406227,1734245445894,-500.49,0.00013999,2]
[345406228,1734245445903,-405.34593499,0.00013999,2]
[345406229,1734245688089,151.017453,0.0001824,30]
[345406230,1734245761881,819.7,0.00018,30]
[345406231,1734245930529,151.017453,0.0001786,30]
[345406235,1734246632161,-191.56,9.937e-05,2]
[345406236,1734246632171,-267.95,0.00010137,2]
[345406237,1734246632180,-789.25215076,0.00010268,2]
[345406238,1734246632191,-492.54174953,0.00010268,2]
[345406239,1734246632201,-53.40824547,0.00010368,2]
[345406240,1734246632222,-246.59175453,0.00010368,2]
[345406241,1734246632231,-1480.90184547,0.00010369,2]
[345406242,1734246632401,-1209.10423545,0.00010369,2]
[345406243,1734246632412,-22334.65533766,0.00010369,2]
[345406271,1734246638315,-656.19,0.00010369,2]
[345406299,1734246640143,-658.7300751,0.00010369,2]
[345406304,1734246642947,-20956.54137558,0.00010369,2]
[345406305,1734246642957,-1373.85,0.00010852,2]
[345406306,1734246642966,-1013.95,0.00012076,2]
[345406307,1734246642976,-411.90150564,0.00012324,2]
[345406308,1734246643143,-571.30849436,0.00012324,2]
[345406309,1734246643155,-405.57,0.00012472,2]
[345406310,1734246643165,-250.0,0.00012512,2]
[345406311,1734246643175,-250.0,0.00012523,2]
[345406312,1734246643184,-282.07,0.00012526,2]
[345406313,1734246643194,-250.0,0.00012568,2]
[345406314,1734246643204,-3029.9,0.00012611,2]
[345406315,1734246643215,-250.0,0.00012619,2]
[345406316,1734246643225,-165.17,0.00012702,2]
[345406317,1734246643235,-1000.0,0.00012784,2]
[345406318,1734246643244,-1118.92,0.00012941,2]
[345406319,1734246643254,-150.99,0.00012941,2]
[345406320,1734246643264,-450.0,0.00013,2]
[345406321,1734246643275,-1373.85,0.00013115,2]
[345406322,1734246643285,-1056.0,0.0001312,2]
[345406323,1734246643295,-151.017453,0.00013157,6]
[345406324,1734246643305,-794.43,0.00013223,2]
[345406325,1734246643314,-166.77,0.00013238,2]
[345406326,1734246643324,-1001.99,0.0001325,2]
[345406327,1734246643333,-687.55,0.00013278,2]
[345406328,1734246643343,-367.864,0.000133,2]
[345406329,1734246643353,-150.0,0.00013512,2]
[345406330,1734246643363,-966.58,0.00013571,2]
[345406331,1734246643372,-1005.17,0.00013605,2]
[345406332,1734246643382,-1007.94,0.00013636,2]
[345406333,1734246643391,-201.3,0.00013699,2]
[345406334,1734246643400,-981.3,0.000137,2]
[345406335,1734246643410,-428.15146824,0.00013752,2]
[345406336,1734246643419,-988.09,0.00013806,2]
[345406337,1734246643428,-1056.0,0.00013811,2]
[345406338,1734246643437,-2500.0,0.00013873,2]
[345406339,1734246643447,-2399.83408441,0.00013897,2]
[345406343,1734246646208,-223.30192245,0.00013897,2]
[345406344,1734246646218,-23049.57891393,0.00013898,2]
[345406345,1734246646228,-835.23593644,0.00013898,2]
[345406346,1734246646344,-279.47779862,0.00013898,2]
[345406347,1734247329231,30000.0,9e-05,2]
[345406349,1734247817176,190.97,9.1e-05,2]
[345406354,1734247832357,-150.0,9.616e-05,5]
[345406355,1734247832367,-2409.326384,9.886e-05,2]
[345406356,1734247832375,-1880.76722912,9.936e-05,2]
[345406357,1734247832385,-300.0,0.00010135,2]
[345406358,1734247832393,-2979.90638688,0.00010136,2]
[345406359,1734247832469,-13905.09361312,0.00010136,2]
[345406360,1734247832480,-433.04,0.00010137,2]
[345406361,1734247832490,-1319.29,0.00010789,2]
[345406362,1734247832499,-420.0,0.00011147,2]
[345406363,1734247832508,-875.54,0.00011461,2]
[345406364,1734247832516,-1000.0,0.00011479,2]
[345406365,1734247832527,-12868.89858764,0.00011511,2]
[345406366,1734247832538,-1018.4,0.00011511,2]
[345406371,1734247838424,-696.654,0.00011511,2]
[345406372,1734247838435,-1909.96862724,0.00011511,2]
[345406373,1734247838532,-4862.000001,0.00011511,2]
[345406376,1734247840332,-2544.07878412,0.00011511,2]
[345406377,1734247840342,-250.0,0.00011511,2]
[345406378,1734247840352,-250.0,0.00011643,2]
[345406379,1734247840362,-119.04439745,0.00011737,2]
[345406380,1734247840466,-30.95560255,0.00011737,2]
[345406381,1734247840477,-150.0,0.00011737,2]
[345406382,1734247840489,-150.58498767,0.00011737,2]
[345406383,1734247840498,-150.40211925,0.00011737,2]
[345406384,1734247840508,-150.0,0.00011737,2]
[345406385,1734247840518,-150.83812936,0.00011737,2]
[345406386,1734247840527,-283.04853265,0.00011737,2]
[345406387,1734247840537,-150.60290508,0.00011737,2]
[345406388,1734247840547,-150.48093492,0.00011737,2]
[345406390,1734247840558,-150.3635166,0.00011737,2]
[345406392,1734247840567,-150.0,0.00011737,2]
[345406394,1734247840577,-157.53146847,0.00011737,2]
[345406396,1734247840587,-170.50311425,0.00011737,2]
[345406398,1734247840596,-150.39170092,0.00011737,2]
[345406400,1734247840605,-150.0,0.00011737,2]
[345406401,1734247840614,-150.0,0.00011814,2]
[345406403,1734247840623,-150.0,0.0001189,2]
[345406405,1734247840633,-150.0,0.00011954,2]
[345406407,1734247840642,-150.0,0.00011967,2]
[345406409,1734247840651,-250.0,0.00012001,2]
[345406411,1734247840661,-1718.05,0.00012007,2]
[345406413,1734247840670,-250.0,0.00012015,2]
[345406415,1734247840679,-150.0,0.00012044,2]
[345406416,1734247840688,-150.0,0.00012063,2]
[345406418,1734247840698,-531.15,0.00012108,2]
[345406420,1734247840708,-150.0,0.00012121,2]
[345406422,1734247840718,-150.0,0.00012172,2]
[345406424,1734247840727,-150.0,0.00012197,2]
[345406426,1734247840736,-587.0,0.0001226,2]
[345406428,1734247840745,-150.0,0.00012274,2]
[345406430,1734247840754,-166.8,0.000123,2]
[345406432,1734247840763,-150.0,0.00012351,2]
[345406434,1734247840773,-150.0,0.00012389,2]
[345406436,1734247840782,-150.0,0.00012389,2]
[345406438,1734247840791,-150.0,0.00012427,2]
[345406439,1734247840803,-150.0,0.00012504,2]
[345406441,1734247840812,-150.0,0.00012581,2]
[345406443,1734247840821,-184.21,0.00012605,2]
[345406445,1734247840830,-150.0,0.00012606,2]
[345406447,1734247840839,-150.0,0.00012658,2]
[345406448,1734247840849,-1018.43,0.00012705,2]
[345406449,1734247840858,-150.0,0.00012715,2]
[345406450,1734247840867,-150.0,0.00012734,2]
[345406451,1734247840877,-150.0,0.00012811,2]
[345406452,1734247840886,-150.0,0.00012824,2]
[345406453,1734247840895,-1001.0,0.00012827,2]
[345406454,1734247840904,-67095.5756,0.00012848,2]
[345406455,1734247840913,-200.0,0.00012857,2]
[345406456,1734247840922,-150.0,0.00012888,2]
[345406457,1734247840932,-875.54,0.00012894,2]
[345406458,1734247840941,-26938.4254543,0.000129,2]
[345406459,1734247840950,-26938.42545427,0.00012905,2]
[345406460,1734247840959,-26938.42545427,0.00012911,2]
[345406461,1734247840968,-1000.0,0.00012914,2]
[345406462,1734247840978,-500.0,0.00012915,2]
[345406463,1734247840987,-281.94305998,0.00012915,2]
[345406464,1734247840996,-26938.42545427,0.00012916,2]
[345406465,1734247841004,-26938.42545427,0.00012921,2]
[345406466,1734247841013,-26938.42545427,0.00012927,2]
[345406467,1734247841022,-26938.42545427,0.00012932,2]
[345406468,1734247841031,-993.02,0.00012935,2]
[345406469,1734247841040,-1008.89,0.00012935,2]
[345406470,1734247841048,-26938.42545427,0.00012937,2]
[345406471,1734247841059,-26938.42545427,0.00012943,2]
[345406472,1734247841069,-731.55183054,0.00012947,2]
[345406473,1734247841078,-24334.38062959,0.00012948,2]
[345406474,1734247841087,-1114.69068202,0.00012948,2]
[345406475,1734247841095,-163.43431388,0.00012948,2]
[345406476,1734247841104,-26938.42545427,0.00012948,2]
[345406477,1734247841113,-150.0,0.00012964,2]
[345406478,1734247841122,-1009.0,0.00013,3]
[345406479,1734247841131,-1000.0,0.00013,2]
[345406480,1734247841140,-1000.0,0.00013,2]
[345406481,1734247841149,-1000.0,0.00013,2]
[345406482,1734247841159,-482.0,0.00013,3]
[345406483,1734247841168,-1000.0,0.00013,2]
[345406484,1734247841177,-1000.0,0.00013,2]
[345406485,1734247841186,-1079.0,0.00013,3]
[345406486,1734247841196,-21764.48858111,0.00013,2]
[345406487,1734247841205,-151.0,0.00013,2]
[345406488,1734247841214,-152.061749,0.00013,2]
[345406489,1734247841223,-151.0,0.00013,2]
[345406490,1734247841233,-985.11,0.00013,2]
[345406491,1734247841242,-1075.0,0.00013014,2]
[345406492,1734247841251,-289.82653304,0.00013041,2]
[345406493,1734247841260,-261.52243068,0.00013041,2]
[345406494,1734247841269,-156.0702638,0.00013041,2]
[345406495,1734247841278,-151.81371809,0.00013041,2]
[345406496,1734247841287,-151.40630469,0.00013041,2]
[345406497,1734247841296,-150.121516,0.00013042,2]
[345406498,1734247841307,-150.121516,0.00013043,2]
[345406499,1734247841316,-150.121516,0.00013043,3]
[345406500,1734247841325,-150.121516,0.00013044,3]
[345406501,1734247841335,-150.121516,0.00013044,2]
[345406502,1734247841344,-150.121516,0.00013045,2]
[345406503,1734247841353,-150.121516,0.00013045,3]
[345406504,1734247841362,-150.121516,0.00013046,3]
[345406505,1734247841371,-150.121516,0.00013046,2]
[345406506,1734247841380,-976.057,0.00013046,2]
[345406507,1734247841389,-500.0,0.00013046,2]
[345406508,1734247841402,-29021.86042848,0.00013046,3]
[345406509,1734247841416,-8440696.88746399,0.00013047,2]
[345406514,1734247843049,-296.27540268,0.00013047,2]
[345406515,1734247843240,-5088.5513,0.00013047,2]
[345406521,1734247846418,-151.0,0.00013,2]
[345406522,1734247846428,-867.5,0.00013047,2]
[345406524,1734248510783,80315.70462351,9.6e-05,2]
[345406525,1734248834442,1544.79,9.093e-05,2]
[345406527,1734248939069,190.97,8.838e-05,2]
[345406547,1734249032326,-170.83,9.613e-05,2]
[345406548,1734249032337,-163.01,0.00010137,2]
[345406549,1734249032347,-280.06,0.00010137,2]
[345406550,1734249032356,-630.087861,0.0001097,2]
[345406551,1734249032365,-200.0,0.00011025,2]
[345406552,1734249032376,-127.88770786,0.00011078,2]
[345406553,1734249032387,-37.20229214,0.00011078,2]
[345406554,1734249032396,-618.19770886,0.00011089,2]
[345406555,1734249032415,-1883.16229114,0.00011089,2]
[345406556,1734249032427,-152.59,0.00011101,2]
[345406557,1734249032439,-500.0,0.00011112,2]
[345406558,1734249032450,-23900.0,0.00011125,2]
[345406559,1734249032461,-150.0,0.00011151,2]
[345406560,1734249032470,-399.11,0.00011177,2]
[345406561,1734249032479,-1500.0,0.00011181,2]
[345406562,1734249032488,-674.67,0.00011214,2]
[345406563,1734249032497,-1000.0,0.00011215,2]
[345406564,1734249032506,-250.0,0.00011241,2]
[345406565,1734249032515,-214.88,0.00011241,2]
[345406566,1734249032525,-250.0,0.00011274,2]
[345406567,1734249032534,-250.0,0.00011297,2]
[345406568,1734249032544,-859.02,0.00011297,2]
[345406569,1734249032554,-1544.79,0.00011357,2]
[345406570,1734249032564,-2175.36,0.00012003,2]
[345406571,1734249032574,-2175.36,0.00012006,2]
[345406572,1734249032583,-2175.36,0.00012009,2]
[345406573,1734249032592,-2175.36,0.00012012,2]
[345406574,1734249032603,-2175.36,0.00012015,2]
[345406575,1734249032613,-2175.36,0.00012019,2]
[345406576,1734249032624,-2175.36,0.00012022,2]
[345406577,1734249032633,-2175.36,0.00012025,2]
[345406578,1734249032642,-2175.36,0.00012028,2]
[345406579,1734249032652,-2175.36,0.00012031,2]
[345406580,1734249032661,-2175.36,0.00012034,2]
[345406581,1734249032670,-2175.36,0.00012038,2]
[345406582,1734249032681,-2967.54,0.00012039,2]
[345406583,1734249032690,-2175.36,0.00012041,2]
[345406584,1734249032699,-2175.36,0.00012044,2]
[345406585,1734249032708,-2175.36,0.00012047,2]
[345406586,1734249032717,-2175.36,0.0001205,2]
[345406587,1734249032726,-2175.36,0.00012053,2]
[345406588,1734249032735,-2175.36,0.00012056,2]
[345406589,1734249032744,-2175.36,0.0001206,2]
[345406590,1734249032753,-2175.36,0.00012063,2]
[345406591,1734249032764,-153.0,0.00012068,2]
[345406592,1734249032773,-153.0,0.00012068,2]
[345406593,1734249032782,-153.0,0.00012068,2]
[345406594,1734249032791,-153.0,0.00012068,2]
[345406595,1734249032800,-153.0,0.00012068,2]
[345406596,1734249032810,-153.0,0.00012068,2]
[345406597,1734249032819,-153.0,0.00012068,2]
[345406598,1734249032828,-153.0,0.00012068,2]
[345406599,1734249032837,-153.0,0.00012068,2]
[345406600,1734249032846,-153.0,0.00012068,2]
[345406601,1734249032855,-153.0,0.00012068,2]
[345406602,1734249032864,-153.0,0.00012068,2]
[345406603,1734249032875,-153.0,0.00012068,2]
[345406604,1734249032884,-153.0,0.00012068,2]
[345406605,1734249032895,-153.0,0.00012068,2]
[345406606,1734249032904,-153.0,0.00012068,2]
[345406607,1734249032914,-153.0,0.00012068,2]
[345406608,1734249032922,-153.0,0.00012068,2]
[345406609,1734249032931,-153.0,0.00012068,2]
[345406610,1734249032940,-153.0,0.00012068,2]
[345406611,1734249032949,-153.0,0.00012068,2]
[345406612,1734249032958,-153.0,0.00012068,2]
[345406613,1734249032967,-153.0,0.00012068,2]
[345406614,1734249032976,-153.0,0.00012068,2]
[345406615,1734249032986,-153.0,0.00012068,2]
[345406616,1734249032996,-153.0,0.00012068,2]
[345406617,1734249033005,-153.0,0.00012068,2]
[345406618,1734249033014,-153.0,0.00012068,2]
[345406619,1734249033024,-153.0,0.00012068,2]
[345406620,1734249033033,-153.0,0.00012068,2]
[345406621,1734249033042,-153.0,0.00012068,2]
[345406622,1734249033051,-153.0,0.00012068,2]
[345406623,1734249033061,-153.0,0.00012068,2]
[345406624,1734249033070,-153.0,0.00012068,2]
[345406625,1734249033079,-153.0,0.00012068,2]
[345406626,1734249033089,-165.17,0.00012206,2]
[345406627,1734249033099,-54450.1,0.00012329,2]
[345406628,1734249033108,-400.0,0.000125,4]
[345406629,1734249033118,-800.0,0.000126,4]
[345406630,1734249033136,-674.67,0.00012615,2]